Workbook

Sheet Title
C1: Calculation practice activities to accompany CHAPTER 5
C3: Social Statistics in Action: A Canadian Introduction
C4: Andrea M. Noack
C6: Oxford University Press, 2018
C8: For more information, visit:
C9: https://www.oupcanada.com/catalog/9780199015214.html

Sheet Probability
B1: PRACTICE CALCULATING PROBABILITIES
B3: Calculate the probability of selecting a case with the specified attribute, using the frequencies (counts) in the yellow highlighted cells. Keep two decimal places throughout your calculations. To check your answer, click on the 'Show Answer' button.
B5: Category | C5: Frequency (F)
E6: Probability of selecting a case with Attribute 1:
B7: Attribute 1 | C7: 11 | G7: hidden
B8: Attribute 2 | C8: 3
B9: Attribute 3 | C9: 12
B10: Total | C10: 26 | E10: Need some help?
B14: PROBABILITY CALCULATION
B15: Probability
C16: = 11 ÷ 26
C17: = ?

Sheet Joint Prob-with replacement
B1: PRACTICE CALCULATING JOINT PROBABILITIES (WITH REPLACEMENT)
B3: Calculate the probability of selecting two cases in sequence with the two specified attributes, using the frequencies (counts) in the yellow highlighted cells. Assume that the case that is selected first is replaced before the second selection. Keep two decimal places throughout your calculations. To check your answer, click on the 'Show Answer' button.
B5: Category | C5: Frequency (F)
E6: Probability of selecting a case with Attribute 1 followed by a case with Attribute 1:
B7: Attribute 1 | C7: 10
B8: Attribute 2 | C8: 6 | G8: hidden
B9: Attribute 3 | C9: 1
B10: Total | C10: 17 | E10: Need some help?
B14: JOINT PROBABILITY CALCULATION
B15: Joint Probability
C16: = (10 ÷ 17) x (10 ÷ 17)
C17: = ? x ?
C18: = ?

Sheet Joint Prob-no replacement
B1: PRACTICE CALCULATING JOINT PROBABILITIES (WITHOUT REPLACEMENT)
B3: Calculate the probability of selecting two cases in sequence with the two specified attributes, using the frequencies (counts) in the yellow highlighted cells. Assume that the case that is selected first is not replaced before the second selection. Keep two decimal places throughout your calculations. To check your answer, click on the 'Show Answer' button.
B5: Category | C5: Frequency (N)
E6: Probability of selecting a case with Attribute 3 followed by a case with Attribute 2:
B7: Attribute 1 | C7: 4
B8: Attribute 2 | C8: 6 | G8: hidden
B9: Attribute 3 | C9: 10
B10: Total | C10: 20 | E10: Need some help?
B14: JOINT PROBABILITY CALCULATION
B15: Joint Probability
C16: = (10 ÷ 20) x (6 ÷ 19)
C17: = ? x ?
C18: = ?

Sheet Variance & Std Dev-sample data
B1: PRACTICE CALCULATING VARIANCE AND STANDARD DEVIATION (SAMPLE DATA)
B3: Calculate the variance and standard deviation of the values in the yellow highlighted cells. Keep two decimal places throughout your calculations. To check your answers, click on the 'Show Answers' button.
B6: Case # | C6: Value on Variable X
B7: 1 | C7: 7 | E7: Number of Cases (n): | G7: 12
B8: 2 | C8: 16 | E8: Mean (x-bar): | G8: 10.25
B9: 3 | C9: 12
B10: 4 | C10: 13 | E10: Variance: | G10: hidden
B11: 5 | C11: 15 | E11: Standard Deviation: | G11: hidden
B12: 6 | C12: 8
B13: 7 | C13: 10
B14: 8 | C14: 20 | E14: Need some help?
B15: 9 | C15: 8
B16: 10 | C16: 4
B17: 11 | C17: 5
B18: 12 | C18: 5
B20: VARIANCE AND STANDARD DEVIATION CALCULATIONS
B21: Case # | C21: Value | D21: Mean | F21: Value - Mean | G21: (Value-Mean)2
B22: 1 | C22: 7 | D22: 10.25 | F22: 7 - 10.25 = ? | G22: -3.25 x -3.25 = ?
B23: 2 | C23: 16 | D23: 10.25 | F23: 16 - 10.25 = ? | G23: 5.75 x 5.75 = ?
B24: 3 | C24: 12 | D24: 10.25 | F24: 12 - 10.25 = ? | G24: 1.75 x 1.75 = ?
B25: 4 | C25: 13 | D25: 10.25 | F25: 13 - 10.25 = ? | G25: 2.75 x 2.75 = ?
B26: 5 | C26: 15 | D26: 10.25 | F26: 15 - 10.25 = ? | G26: 4.75 x 4.75 = ?
B27: 6 | C27: 8 | D27: 10.25 | F27: 8 - 10.25 = ? | G27: -2.25 x -2.25 = ?
B28: 7 | C28: 10 | D28: 10.25 | F28: 10 - 10.25 = ? | G28: -0.25 x -0.25 = ?
B29: 8 | C29: 20 | D29: 10.25 | F29: 20 - 10.25 = ? | G29: 9.75 x 9.75 = ?
B30: 9 | C30: 8 | D30: 10.25 | F30: 8 - 10.25 = ? | G30: -2.25 x -2.25 = ?
B31: 10 | C31: 4 | D31: 10.25 | F31: 4 - 10.25 = ? | G31: -6.25 x -6.25 = ?
B32: 11 | C32: 5 | D32: 10.25 | F32: 5 - 10.25 = ? | G32: -5.25 x -5.25 = ?
B33: 12 | C33: 5 | D33: 10.25 | F33: 5 - 10.25 = ? | G33: -5.25 x -5.25 = ?
F34: Column Sum (Σ) | G34: = 276.22
F35: N | G35: = 12
F36: Variance
G37: = 276.22 ÷ (12 - 1)
G38: = ? ÷ ?
G39: = ?
F40: Std. Deviation
G41: = square root of [276.22 ÷ (12 - 1)]
G42: = square root of (? ÷ ?)
G43: = square root of ?
G44: = ?

Sheet Probability-A (hidden)
B1: PRACTICE CALCULATING PROBABILITIES
B5: Category | C5: Frequency (Occurrences)
E6: =CONCATENATE("'Probability of selecting a case with Attribute ",H7,":") -> 'Probability of selecting a case with Attribute 1:
A7: =RANDBETWEEN(1,20) -> 10 | B7: Attribute 1 | C7: 11 | G7: =IF(H17=0,"'<0.00 or <0%",CONCATENATE("'",H17," or ",I17,"%")) -> '0.42 or 42% | H7: 1 | I7: =RANDBETWEEN(1,3) -> 3
A8: =RANDBETWEEN(1,20) -> 7 | B8: Attribute 2 | C8: 3
A9: 10 | B9: Attribute 3 | C9: 12
A10: =SUM(A7:A9) -> 27 | B10: Total | C10: 26
B12: Need some help?
B14: PROBABILITY CALCULATION
B15: Probability | H15: =INDEX(C7:C9,H7) -> 11
C16: =CONCATENATE("'= ",H15," ÷ ",C10) -> '= 11 ÷ 26
C17: =IF(H17=0,"'= <0.00",CONCATENATE("'= ",G17, H17)) -> '= 0.42 | H17: =ROUND(H15/C10,2) -> 0.42 | I17: =H17*100 -> 42

Sheet Joint Probability (repl)-A (hidden)
B1: PRACTICE CALCULATING JOINT PROBABILITIES
I4: =RAND() -> 0.1347427275 | J4: =RAND() -> 0.6170317352
B5: Category | C5: Frequency (Occurrences) | I5: =RAND() -> 0.5591975024 | J5: =RAND() -> 0.2174777113
E6: =CONCATENATE("'Probability of selecting a case with Attribute ",L7," followed by a case with Attribute ",L8,":") -> 'Probability of selecting a case with Attribute 1 followed by a case with Attribute 1: | I6: =RAND() -> 0.5928063631 | J6: =RAND() -> 0.05023599285
A7: =RANDBETWEEN(1,10) -> 6 | B7: Attribute 1 | C7: 10 | G7: =IF(I18=0,"<0.00 or <0%",CONCATENATE("'",I18," or ",J18,"%")) -> '0.35 or 35% | I7: 0.503081577 | J7: 0.1645959449 | K7: =MIN(I7:I9) -> 0.503081577 | L7: =MATCH(K7,I7:I9,0) -> 1 | M7: =INDEX(C7:C9,L7) -> 10
A8: =RANDBETWEEN(1,10) -> 5 | B8: Attribute 2 | C8: 6 | I8: 0.8101576212 | J8: 0.4490656728 | K8: =MIN(J7:J9) -> 0.1645959449 | L8: =MATCH(K8,J7:J9,0) -> 1 | M8: =INDEX(C7:C9,L8) -> 10
A9: 7 | B9: Attribute 3 | C9: 1 | I9: 0.5595910298 | J9: 0.2220622812
A10: =SUM(A7:A9) -> 18 | B10: Total | C10: 17
C12: Need some help?
B14: JOINT PROBABILITY CALCULATION
B15: Joint Probability
C16: =CONCATENATE("'= (",M7," ÷ ",C10,") x (",M8," ÷ ",C10,")") -> '= (10 ÷ 17) x (10 ÷ 17)
C17: =CONCATENATE("'= ",I17," x ",J17) -> '= 0.59 x 0.59 | I17: =ROUND(M7/C10,2) -> 0.59 | J17: =ROUND(M8/C10,2) -> 0.59
C18: =IF(I18=0,"'= <0.00",CONCATENATE("'= ",I18)) -> '= 0.35 | I18: =ROUND(I17*J17,2) -> 0.35 | J18: =I18*100 -> 35

Sheet Joint Probability (no repl)-A (hidden)
B1: PRACTICE CALCULATING JOINT PROBABILITIES
I4: =RAND() -> 0.5167086588 | J4: =RAND() -> 0.2286282062
B5: Category | C5: Frequency (Occurrences) | I5: =RAND() -> 0.3741913672 | J5: 0.9056868009
E6: =CONCATENATE("'Probability of selecting a case with Attribute ",L7," followed by a case with Attribute ",L8,":") -> 'Probability of selecting a case with Attribute 3 followed by a case with Attribute 2: | I6: =RAND() -> 0.6560174299 | J6: 0.3203108039
A7: =RANDBETWEEN(1,10) -> 5 | B7: Attribute 1 | C7: 4 | G7: =IF(AND(I18=0,M8>0),"'<0.00 or <0%",CONCATENATE("'",I18," or ",J18,"%")) -> '0.16 or 16% | I7: 0.7053079301 | J7: 0.6146820837 | K7: =MIN(I7:I9) -> 0.4083869739 | L7: =MATCH(K7,I7:I9,0) -> 3 | M7: =INDEX(C7:C9,L7) -> 10
A8: =RANDBETWEEN(1,10) -> 3 | B8: Attribute 2 | C8: 6 | I8: 0.7271922432 | J8: 0.4983737219 | K8: =MIN(J7:J9) -> 0.4983737219 | L8: =MATCH(K8,J7:J9,0) -> 2 | M8: =IF(L8=L7,N8-1,N8) -> 6 | N8: =INDEX(C7:C9,L8) -> 6
A9: 10 | B9: Attribute 3 | C9: 10 | I9: 0.4083869739 | J9: 0.9288352602
A10: =SUM(A7:A9) -> 18 | B10: Total | C10: 20
C12: Need some help?
B14: JOINT PROBABILITY CALCULATION
B15: Joint Probability
C16: =CONCATENATE("'= (",M7," ÷ ",C10,") x (",M8," ÷ ",I16,")") -> '= (10 ÷ 20) x (6 ÷ 19) | I16: =C10-1 -> 19
C17: =CONCATENATE("'= ",I17," x ",J17) -> '= 0.5 x 0.32 | I17: =ROUND(M7/C10,2) -> 0.5 | J17: =ROUND(M8/I16,2) -> 0.32
C18: =IF(AND(I18=0,M8>0),"'= <0.00",CONCATENATE("'= ",I18)) -> '= 0.16 | I18: =ROUND(I17*J17,2) -> 0.16 | J18: =I18*100 -> 16

Sheet Variance & Std Deviation-S-A (hidden)
B1: PRACTICE CALCULATING VARIANCE AND STANDARD DEVIATION (SAMPLE DATA)
B6: Case # | C6: Value
A7: =RANDBETWEEN(1,20) -> 7 | B7: 1 | C7: 7 | E7: Number of Cases: | G7: =COUNT(C7:C18) -> 12
A8: 4 | B8: 2 | C8: 16 | E8: Mean: | G8: =ROUND(AVERAGE(C7:C18),2) -> 10.25
A9: 15 | B9: 3 | C9: 12
A10: 4 | B10: 4 | C10: 13 | E10: Variance: | G10: =J37 -> 25.11
A11: 8 | B11: 5 | C11: 15 | E11: Standard Deviation: | G11: =J43 -> 5.01
A12: 3 | B12: 6 | C12: 8
A13: 7 | B13: 7 | C13: 10 | E13: Need some help?
A14: 4 | B14: 8 | C14: 20
A15: 4 | B15: 9 | C15: 8
A16: 19 | B16: 10 | C16: 4
A17: 15 | B17: 11 | C17: 5
A18: 4 | B18: 12 | C18: 5
B20: VARIANCE AND STANDARD DEVIATION CALCULATIONS
B21: Case # | C21: Value | D21: Mean | F21: Value - Mean | G21: (Value-Mean)2
B22: 1 | C22: =C7 -> 7 | D22: =$G$8 -> 10.25 | F22: =CONCATENATE($C22," - ",$G$8," = ",$J22) -> 7 - 10.25 = -3.25 | G22: =CONCATENATE($J22," x ",$J22," = ",$K22) -> -3.25 x -3.25 = 10.56 | J22: =ROUND(C22-$G$8,2) -> -3.25 | K22: =ROUND(J22^2,2) -> 10.56
B23: 2 | C23: =C8 -> 16 | D23: =$G$8 -> 10.25 | F23: 16 - 10.25 = 5.75 | G23: =CONCATENATE($J23," x ",$J23," = ",$K23) -> 5.75 x 5.75 = 33.06 | J23: 5.75 | K23: =ROUND(J23^2,2) -> 33.06
B24: 3 | C24: 12 | D24: 10.25 | F24: 12 - 10.25 = 1.75 | G24: 1.75 x 1.75 = 3.06 | J24: 1.75 | K24: 3.06
B25: 4 | C25: 13 | D25: 10.25 | F25: 13 - 10.25 = 2.75 | G25: 2.75 x 2.75 = 7.56 | J25: 2.75 | K25: 7.56
B26: 5 | C26: 15 | D26: 10.25 | F26: 15 - 10.25 = 4.75 | G26: 4.75 x 4.75 = 22.56 | J26: 4.75 | K26: 22.56
B27: 6 | C27: 8 | D27: 10.25 | F27: 8 - 10.25 = -2.25 | G27: -2.25 x -2.25 = 5.06 | J27: -2.25 | K27: 5.06
B28: 7 | C28: 10 | D28: 10.25 | F28: 10 - 10.25 = -0.25 | G28: -0.25 x -0.25 = 0.06 | J28: -0.25 | K28: 0.06
B29: 8 | C29: 20 | D29: 10.25 | F29: 20 - 10.25 = 9.75 | G29: 9.75 x 9.75 = 95.06 | J29: 9.75 | K29: 95.06
B30: 9 | C30: 8 | D30: 10.25 | F30: 8 - 10.25 = -2.25 | G30: -2.25 x -2.25 = 5.06 | J30: -2.25 | K30: 5.06
B31: 10 | C31: 4 | D31: 10.25 | F31: 4 - 10.25 = -6.25 | G31: -6.25 x -6.25 = 39.06 | J31: -6.25 | K31: 39.06
B32: 11 | C32: 5 | D32: 10.25 | F32: 5 - 10.25 = -5.25 | G32: -5.25 x -5.25 = 27.56 | J32: -5.25 | K32: 27.56
B33: 12 | C33: 5 | D33: 10.25 | F33: 5 - 10.25 = -5.25 | G33: -5.25 x -5.25 = 27.56 | J33: -5.25 | K33: 27.56
F34: Column Sum | G34: =CONCATENATE("'= ",J34) -> '= 276.22 | J34: =ROUND(SUM(K22:K33),2) -> 276.22
F35: n | G35: =CONCATENATE("'= ",J35) -> '= 12 | J35: =G7 -> 12
F36: Variance | J36: =J35-1 -> 11
G37: =CONCATENATE("'= ",J34," ÷ (",J35," - 1)") -> '= 276.22 ÷ (12 - 1) | J37: =ROUND(J34/J36,2) -> 25.11
G38: =CONCATENATE("'= ",J34," ÷ ",J36) -> '= 276.22 ÷ 11
G39: =CONCATENATE("'= ",J37) -> '= 25.11
F40: Std. Deviation
G41: =CONCATENATE("'= square root of [",J34," ÷ (",J35," - 1)]") -> '= square root of [276.22 ÷ (12 - 1)]
G42: =CONCATENATE("'= square root of (",J34," ÷ ",J36,")") -> '= square root of (276.22 ÷ 11)
G43: =CONCATENATE("'= square root of ",J37) -> '= square root of 25.11 | J43: =ROUND(SQRT(J37),2) -> 5.01
G44: =CONCATENATE("'= ",J43) -> '= 5.01
F45: Value - Mean | G45: (Value-Mean)2
F46: =CONCATENATE($C22," - ",$G$8," = ?") -> 7 - 10.25 = ? | G46: =CONCATENATE($J22," x ",$J22," = ?") -> -3.25 x -3.25 = ?
F47: =CONCATENATE($C23," - ",$G$8," = ?") -> 16 - 10.25 = ? | G47: =CONCATENATE($J23," x ",$J23," = ?") -> 5.75 x 5.75 = ?
F48: 12 - 10.25 = ? | G48: 1.75 x 1.75 = ?
F49: 13 - 10.25 = ? | G49: 2.75 x 2.75 = ?
F50: 15 - 10.25 = ? | G50: 4.75 x 4.75 = ?
F51: 8 - 10.25 = ? | G51: -2.25 x -2.25 = ?
F52: 10 - 10.25 = ? | G52: -0.25 x -0.25 = ?
F53: 20 - 10.25 = ? | G53: 9.75 x 9.75 = ?
F54: 8 - 10.25 = ? | G54: -2.25 x -2.25 = ?
F55: 4 - 10.25 = ? | G55: -6.25 x -6.25 = ?
F56: 5 - 10.25 = ? | G56: -5.25 x -5.25 = ?
F57: 5 - 10.25 = ? | G57: -5.25 x -5.25 = ?
